Workbook

Sheet 9R-S
C8: Type your name: | G8: Model: | I8: Fuel level: | K8: Drawbar support
G9: 9470R Scraper | I9: Half | K9: Short
G10: =INDEX(model_9_w,MATCH(G9,model_9,0)) -> 13627.6 | I10: =INDEX(fuel_9_w,MATCH(I9,fuel_9,0)) -> 688.4775 | K10: =INDEX(DS_9_w,MATCH(K9,DS_9,0)) -> 0
G11: =INDEX(model_9_s,MATCH(G9,model_9,0)) -> 0.73 | I11: =INDEX(fuel_9_s,MATCH(I9,fuel_9,0)) -> 0.152 | K11: =INDEX(DS_9_s,MATCH(K9,DS_9,0)) -> 0
G12: =INDEX(hp_9,MATCH(G9,model_9,0)) -> 470
C14: Name of analysis: | G14: No. of wheels: | I14: Tire size:
G15: Duals | I15: 710/70R42
G16: =INDEX(wheels_9_w,MATCH(G15,wheels_9,0)) -> 0 | I16: =IF(G15="Singles",INDEX(singles_9_w,MATCH(I15,singles_9,0)),IF(G15="Duals",INDEX(duals_9_w,MATCH(I15,duals_9,0)))) -> 5599.961052
G17: =INDEX(wheels_9_s,MATCH(G15,wheels_9,0)) -> 0 | I17: 0.5
E19: Choose a wheel weight code -OR- build a custom package with the options below
K20: 1
C22: Front ballast | G22: Front wheel weights
C23: Weight support: | E23: Suitcase weights: | G23: 72 kg: | I23: 205 kg: | K23: 625 kg:
C24: Not Included | E24: None | G24: None | I24: None | K24: None
C25: =INDEX(FWS_9_w,MATCH(C24,FWS_9,0)) -> 0 | E25: =INDEX(FSW_9_w,MATCH(E24,FSW_9,0)) -> 0 | G25: =INDEX(w72_9_w,MATCH(G24,w72_9,0)) -> 0 | I25: =INDEX(w205_9_w,MATCH(I24,w205_9,0)) -> 0 | K25: =INDEX(w625_9_w,MATCH(K24,w625_9,0)) -> 0
C26: =INDEX(FWS_9_s,MATCH(C24,FWS_9,0)) -> 1.561 | E26: =INDEX(FSW_9_s,MATCH(E24,FSW_9,0)) -> 1.581 | G26: 1 | I26: 1 | K26: 1
C28: Enter any additional ballast (kg)
C29: Front support: | E29: Front axle: | G29: Side mount: | I29: Rear axle: | K29: Rear drawbar:
C30: 0 | E30: 0 | G30: 0 | I30: 0 | K30: 0
C31: =C30 -> 0 | E31: =E30 -> 0 | G31: =G30 -> 0 | I31: =I30 -> 0 | K31: =K30 -> 0
C32: 1.57 | E32: 1 | G32: 0.6 | I32: 0 | K32: -0.355
C35: Total weight: | E35: =C43& " kg "&ROUND(C43*2.20462,0)& " lb" -> 19916 kg 43907 lb
C36: Weight / Engine power: | E36: =ROUND(C$43/G$12,0)& " kg/hp "& ROUND((C$43*2.20462)/G$12,0) &" lb/hp" -> 42 kg/hp 93 lb/hp
C38: Front axle weight: | E38: =E43&" kg "&ROUND(E43*2.20462,0)& " lb" -> 12853 kg 28336 lb
C39: Rear axle weight: | E39: =C43-E43&" kg "&ROUND((C43-E43)*2.20462,0)& " lb" -> 7063 kg 15571 lb | G39: =G43 -> 0.645 | I39: =100%-G39 -> 0.355 | K39: =TODAY() -> 2014-09-26
C43: =ROUND(SUM(G10,I10,K10,G16,I16,C25,E25,G25,I25,K25,C31,E31,G31,I31,K31),0) -> 19916 | E43: =ROUND(SUM(G10*G11,K10*K11,,I10*I11,G16*G17,I16*I17,C25*C26,E25*E26,G25*G26,I25*I26,K25*K26,C31*C32,E31*E32,G31*G32,I31*I32,K31*K32),0) -> 12853 | G43: =ROUND(E43/C43,3) -> 0.645

Sheet 9RT-S
C8: Type your name: | E8: Name of analysis: | I8: Model: | K8: Fuel level:
I9: 9470RT Scraper | K9: Half
I10: =INDEX(model_9T_w,MATCH(I9,model_9T,0)) -> 19890.5 | K10: =INDEX(fuel_9T_w,MATCH(K9,fuel_9T,0)) -> 607.7275
I11: =INDEX(model_9T_s,MATCH(I9,model_9T,0)) -> 0.526 | K11: =INDEX(fuel_9T_s,MATCH(K9,fuel_9T,0)) -> 0.4
I12: =INDEX(hp_9T,MATCH(I9,model_9T,0)) -> 470
C14: Front ballast | G14: Front idler weights
C15: Weight support: | G15: 36 kg: | I15: 72 kg: | K15: 205 kg:
C16: Not Included | E16: None | G16: None | I16: None | K16: None
C17: =INDEX(FWS_9T_w,MATCH(C16,FWS_9T,0)) -> 0 | E17: =INDEX(FSW_9T_w,MATCH(E16,FSW_9T,0)) -> 0 | G17: =INDEX(w36_9T_w,MATCH(G16,w36_9T,0)) -> 0 | I17: =INDEX(w72_9T_w,MATCH(I16,w72_9T,0)) -> 0 | K17: =INDEX(w205_9T_w,MATCH(K16,w205_9T,0)) -> 0
C18: =INDEX(FWS_9T_s,MATCH(C16,FWS_9T,0)) -> 0 | E18: =INDEX(FSW_9T_s,MATCH(E16,FSW_9T,0)) -> 1.8484 | G18: 1 | I18: 1 | K18: 1
C20: Side ballast
C21: Weight support: | E21: Suitcase weights:
C22: Not Included | E22: None
C23: =INDEX(SWS_9T_w,MATCH(C22,SWS_9T,0)) -> 0 | E23: =INDEX(SSW_9T_w,MATCH(E22,SSW_9T,0)) -> 0
C24: =INDEX(SWS_9T_s,MATCH(C22,SWS_9T,0)) -> 0.637 | E24: =INDEX(SSW_9T_s,MATCH(E22,SSW_9T,0)) -> 0.637
C26: Enter any additional ballast (kg)
C27: Front support: | E27: Front axle: | G27: Side support: | I27: Rear drawbar:
C28: 0 | E28: 0 | G28: 0 | I28: 0
C29: =C28 -> 0 | E29: =E28 -> 0 | G29: =G28 -> 0 | I29: =I28 -> 0
C30: 1.75 | E30: 1 | G30: 0.637 | I30: -0.355
C33: Total weight: | E33: =C41& " kg "&ROUND(C41*2.20462,0)& " lb" -> 20498 kg 45190 lb
C34: Weight / Engine power: | E34: =ROUND(C$41/I$12,0)& " kg/hp "& ROUND((C$41*2.20462)/I$12,0) &" lb/hp" -> 44 kg/hp 96 lb/hp
C36: Front axle weight: | E36: =E41&" kg "&ROUND(E41*2.20462,0)& " lb" -> 10705 kg 23600 lb
C37: Rear axle weight: | E37: =C41-E41&" kg "&ROUND((C41-E41)*2.20462,0)& " lb" -> 9793 kg 21590 lb | G37: =G41 -> 0.522 | I37: =100%-G37 -> 0.478 | K37: =TODAY() -> 2014-09-26
C41: =ROUND(SUM(I10,K10,C17,E17,G17,I17,K17,C23,E23,C29,E29,G29,I29),0) -> 20498 | E41: =ROUND(SUM(I10*I11,K10*K11,C17*C18,E17*E18,G17*G18,I17*I18,K17*K18,C23*C24,E23*E24,C29*C30,E29*E30,G29*G30,I29*I30),0) -> 10705 | G41: =ROUND(E41/C41,3) -> 0.522

Sheet 9R-S Option Weights (hidden)
B3: kg total | C3: % front axle
A4: Model | D4: hp
A5: 9470R Scraper | B5: 13627.6 | C5: 0.73 | D5: 470
A6: 9520R Scraper | B6: 13643.9 | C6: 0.73 | D6: 520
A7: 9570R Scraper | B7: 13624.6 | C7: 0.72 | D7: 570
A8: 9620R Scraper | B8: 13624.6 | C8: 0.72 | D8: 620
A10: Drawbar Support
A11: Short | B11: 0 | C11: 0
A12: Long | B12: 182.9 | C12: -0.076
A14: Fuel level | E14: Diesel + DEF
A15: Empty | B15: 0 | C15: 0 | E15: diesel volume of 1514 L at .85kg/L
A16: Half | B16: =0.5*B17 -> 688.4775 | C16: 0.152 | E16: def volume of 83 L at 1.085 kg/L
A17: Full | B17: =(1514*0.85)+(83*1.085) -> 1376.955 | C17: 0.168
A19: No. of wheels
A20: Singles | B20: 0 | C20: 0
A21: Duals | B21: 0 | C21: 0
A23: Tire size
A24: Singles
A25: 76x50-32 | B25: 5217.2 | C25: 0.5 | D25: 76x50-32 Flotation 23-Degree Deep Tread Logger Tire in Single Configuration
A26: Duals
A27: 620/70R42 | B27: 4739.904502 | C27: 0.5
A28: 620/70R46 | B28: 4879.928476 | C28: 0.5
A29: 650/85R38 | B29: 5060 | C29: 0.5
A30: IF650/85R38 | B30: 5539.950777 | C30: 0.5
A31: 710/70R38 | B31: 5199.937914 | C31: 0.5
A32: IF710/70R38 | B32: 5262.3 | C32: 0.5
A33: 710/70R42 | B33: 5599.961052 | C33: 0.5
A34: IF710/70R42 | B34: 5879.918281 | C34: 0.5
A36: Front Weight Support
A37: Not Included | B37: 0 | C37: 1.561
A38: Included | B38: 389.2 | C38: 1.561
A40: Front Suitcase Weights
A41: None | B41: 0 | C41: 1.581
A42: 8 | B42: =43*A42 -> 344 | C42: 1.581
A43: 16 | B43: =43*A43 -> 688 | C43: 1.581
A44: 26 | B44: 1118 | C44: 1.581
A45: 36 | B45: 1548 | C45: 1.581
A47: Front Wheel Weights
A48: 72 kg
A49: None | B49: 0 | C49: 1
A50: One pair | B50: 144 | C50: 1
A51: 205 kg
A52: None | B52: 0 | C52: 1
A53: One pair | B53: 410 | C53: 1
A54: Two pairs | B54: =B53*2 -> 820 | C54: 1
A55: Three pairs | B55: =B53*3 -> 1230 | C55: 1
A56: 625 kg
A57: None | B57: 0 | C57: 1
A58: One pair | B58: 1250 | C58: 1
A60: Ballast packages
A61: None
A62: 8982

Sheet 9RT-S Option Weights (hidden)
C3: % front axle
A4: Model | D4: hp
A5: 9470RT Scraper | B5: 19890.5 | C5: 0.526 | D5: 470
A6: 9520RT Scraper | B6: 19890.5 | C6: 0.526 | D6: 520
A7: 9570RT Scraper | B7: 19746.2 | C7: 0.525 | D7: 570
A9: Fuel level | E9: Diesel + DEF
A10: Empty | B10: 0 | C10: 0.4 | E10: diesel volume of 1324 L at .85kg/L
A11: Half | B11: =0.5*B12 -> 607.7275 | C11: 0.4 | E11: def volume of 83 L at 1.085 kg/L
A12: Full | B12: =(1324*0.85)+(83*1.085) -> 1215.455 | C12: 0.4
A14: Tracks
A15: 30 in, 6500 Series | B15: 1600 | C15: 0.4252 | D15: Update for scraper tracks and add to base weight
A17: Front Weight Support
A18: Not Included | B18: 0 | C18: 0
A19: Included | B19: 310.7 | C19: 1.7194
A21: Front Suitcase Weights
A22: None | B22: 0 | C22: 1.8484
A23: 4 | B23: =43*A23 -> 172 | C23: 1.8484
A24: 8 | B24: =43*A24 -> 344 | C24: 1.8484
A25: 12 | B25: 516 | C25: 1.8484
A26: 16 | B26: 688 | C26: 1.8484
A27: 20 | B27: 860 | C27: 1.8484
A28: 26 | B28: 1118 | C28: 1.8484
A30: Idler Weights
A31: 36 kg
A32: None | B32: 0 | C32: 1
A33: One pair | B33: 72 | C33: 1
A34: Two pairs | B34: 144 | C34: 1
A35: 72 kg
A36: None | B36: 0 | C36: 1
A37: One pair | B37: 144 | C37: 1
A38: Two pairs | B38: =144*2 -> 288 | C38: 1
A39: 205 kg
A40: None | B40: 0 | C40: 1
A41: One pair | B41: 410 | C41: 1
A42: Two pairs | B42: =410*2 -> 820 | C42: 1
A44: Side Weight Supports
A45: Not Included | B45: 0 | C45: 0.637
A46: Included | B46: 99.3 | C46: 0.637
A48: Side Suitcase Weights
A49: None | B49: 0 | C49: 0.637
A50: 4 per side | B50: =43*8 -> 344 | C50: 0.637
A51: 8 per side | B51: =43*16 -> 688 | C51: 0.637
A52: 12 per side | B52: =43*24 -> 1032 | C52: 0.637
A53: 16 per side | B53: =43*32 -> 1376 | C53: 0.637
